Department Family,Entity,Date,Expense Type,Expense Area,Supplier,Transaction Number,Amount
DOH,London Ambulance Service NHS Trust,09/09/2015,Occupational Health Fees,Staff Support,Guys & St Thomas Nhs Foundation Trust,2060,38858.80
DOH,London Ambulance Service NHS Trust,09/09/2015,Elective Bets Nurses,Trust Management,Barts & The London Nhs Trust,2063,30000.00
DOH,London Ambulance Service NHS Trust,01/09/2015,Cac Tools Maintenance,Cad Support,Northgate Public Services (Uk) Ltd,221226,46373.83
DOH,London Ambulance Service NHS Trust,09/09/2015,Vehicles,Capital,S.Macneillie & Son Ltd,220630,77506.18
DOH,London Ambulance Service NHS Trust,09/09/2015,Vehicles,Capital,S.Macneillie & Son Ltd,220635,77506.18
DOH,London Ambulance Service NHS Trust,02/09/2015,Contract Labour,Corporate Logistics,Interserve Hospital Services,220923,252490.53
DOH,London Ambulance Service NHS Trust,02/09/2015,Rent,Eac Training,Dron & Wright,221000,78064.24
DOH,London Ambulance Service NHS Trust,02/09/2015,Private Ambulance Hire,Director Of Ops,Srcl Ltd,221257,25149.05
DOH,London Ambulance Service NHS Trust,09/09/2015,Private Ambulance Hire,Director Of Ops,Srcl Ltd,221259,31974.65
DOH,London Ambulance Service NHS Trust,09/09/2015,Private Ambulance Hire,Director Of Ops,Srcl Ltd,221262,36552.69
DOH,London Ambulance Service NHS Trust,09/09/2015,Vehicles,Capital,S.Macneillie & Son Ltd,221369,77506.18
DOH,London Ambulance Service NHS Trust,02/09/2015,Data Network Rental,Networks,Vodafone Corporate Limited,221527,90428.40
DOH,London Ambulance Service NHS Trust,02/09/2015,Data Network Rental,Networks,Bt Global Services,221533,31799.62,, 
DOH,London Ambulance Service NHS Trust,09/09/2015,Data Network Rental,Networks,Daisy Communications Ltd,221537,25450.87
DOH,London Ambulance Service NHS Trust,02/09/2015,Private Ambulance Hire,Director Of Ops,Srcl Ltd,221579,43236.46
DOH,London Ambulance Service NHS Trust,23/09/2015,Private Ambulance Hire,Director Of Ops,Srcl Ltd,221580,39501.06
DOH,London Ambulance Service NHS Trust,16/09/2015,Private Ambulance Hire,Director Of Ops,Srcl Ltd,221581,39699.07
DOH,London Ambulance Service NHS Trust,23/09/2015,Private Ambulance Hire,Director Of Ops,Srcl Ltd,221582,34471.62
DOH,London Ambulance Service NHS Trust,02/09/2015,Private Ambulance Hire,Director Of Ops,Medical Services Ltd,221621,58343.73,, 
DOH,London Ambulance Service NHS Trust,02/09/2015,Occupational Health Fees,Staff Support,Health Management Limited,221623,85403.41
DOH,London Ambulance Service NHS Trust,09/09/2015,Private Ambulance Hire,Director Of Ops,X9 Services,222054,52097.90
DOH,London Ambulance Service NHS Trust,09/09/2015,Vehicles,Capital,Capita Treasury Solutions Ltd,222110,246300.00
DOH,London Ambulance Service NHS Trust,09/09/2015,Contract Labour,Vehicle Resouce Centre,Lightbridge Support Services,222139,26564.16
DOH,London Ambulance Service NHS Trust,09/09/2015,Tyres,Fleet Support Services,Ats Euromaster Ltd,222142,41689.60
DOH,London Ambulance Service NHS Trust,23/09/2015,Defibrillator Purchase,Fru Procurement,De Lage Landen Leasing Ltd,222144,34959.60
DOH,London Ambulance Service NHS Trust,09/09/2015,Private Ambulance Hire,Director Of Ops,St John Ambulance Londonprince,222198,90863.10
DOH,London Ambulance Service NHS Trust,09/09/2015,Private Ambulance Hire,Director Of Ops,St John Ambulance Londonprince,222199,109511.10
DOH,London Ambulance Service NHS Trust,09/09/2015,Private Ambulance Hire,Director Of Ops,St John Ambulance Londonprince,222200,104831.10
DOH,London Ambulance Service NHS Trust,09/09/2015,Private Ambulance Hire,Director Of Ops,St John Ambulance Londonprince,222201,86984.10
DOH,London Ambulance Service NHS Trust,09/09/2015,Rent,Cody Road Ambulance Station,Cbre Ltd,222215,79650.00
DOH,London Ambulance Service NHS Trust,09/09/2015,Service Charges,Cody Road Ambulance Station,Cbre Ltd,222215,3717.30
DOH,London Ambulance Service NHS Trust,16/09/2015,Agency Professional Staff,Trust Management,Medical Professional Personnel Ltd,222244,30573.90,, 
DOH,London Ambulance Service NHS Trust,09/09/2015,Rent,Estate Management,Dron & Wright,222252,68725.00
DOH,London Ambulance Service NHS Trust,09/09/2015,Service Charges,Estate Management,Dron & Wright,222252,22871.88
DOH,London Ambulance Service NHS Trust,09/09/2015,Rent,Eac Training,Dron & Wright,222253,31311.48
DOH,London Ambulance Service NHS Trust,09/09/2015,Private Ambulance Hire,Director Of Ops,X9 Services,222606,47777.96
DOH,London Ambulance Service NHS Trust,16/09/2015,Private Ambulance Hire,Director Of Ops,X9 Services,222608,50335.46
DOH,London Ambulance Service NHS Trust,09/09/2015,Private Ambulance Hire,Director Of Ops,X9 Services,222609,48285.38
DOH,London Ambulance Service NHS Trust,16/09/2015,Private Ambulance Hire,Director Of Ops,Srcl Ltd,222623,27049.24
DOH,London Ambulance Service NHS Trust,23/09/2015,Private Ambulance Hire,Director Of Ops,Medical Services Ltd,222759,67648.99
DOH,London Ambulance Service NHS Trust,23/09/2015,Private Ambulance Hire,Director Of Ops,Medical Services Ltd,222760,56420.11
DOH,London Ambulance Service NHS Trust,09/09/2015,A&E Charge From Other Services,East Central Management,Chuhse,222761,34555.00
DOH,London Ambulance Service NHS Trust,09/09/2015,Building Maintenance,Estate Management,Survey Roofing Ltd,223016,64497.00
DOH,London Ambulance Service NHS Trust,09/09/2015,Cleaning Of Premises,Estate Management,Lakethorne Ltd,223042,58336.10
DOH,London Ambulance Service NHS Trust,09/09/2015,Vehicles,Capital,S.Macneillie & Son Ltd,223102,47155.68
DOH,London Ambulance Service NHS Trust,16/09/2015,External Audit Fees,Director Of Finance,Pricewaterhousecoopers,223319,45572.40
DOH,London Ambulance Service NHS Trust,16/09/2015,Rent,Hart,Jones Lang Lasalle,223424,58764.00
DOH,London Ambulance Service NHS Trust,23/09/2015,Data Network Rental,Networks,Bt Global Services,223676,35288.36
DOH,London Ambulance Service NHS Trust,23/09/2015,Rent,Pocock Street,Tlg Llc,223686,50451.98
DOH,London Ambulance Service NHS Trust,16/09/2015,Consultancy Fees,Director Of Finance,Pa Consulting Services Ltd,224331,56448.00
DOH,London Ambulance Service NHS Trust,23/09/2015,Private Ambulance Hire,Director Of Ops,Medical Services Ltd,224726,58518.34
DOH,London Ambulance Service NHS Trust,23/09/2015,Vehicles,Capital,Capita Treasury Solutions Ltd,224728,340800.00
DOH,London Ambulance Service NHS Trust,23/09/2015,Contract Labour,Vehicle Resouce Centre,Lightbridge Support Services,224744,66150.35
DOH,London Ambulance Service NHS Trust,23/09/2015,Technical Support - Contract,Capita Contract,Capita Secure Information Solutions Ltd,224909,57183.10
DOH,London Ambulance Service NHS Trust,23/09/2015,Taxis & Mini Cabs,Eoc Support Services,Addison Lee,225136,31608.06
DOH,London Ambulance Service NHS Trust,23/09/2015,Taxis & Mini Cabs,Eoc Support Services,Addison Lee,225139,27114.36
DOH,London Ambulance Service NHS Trust,23/09/2015,Buildings,Capital,Btu Installation And Maintenance Ltd,225140,35322.61
DOH,London Ambulance Service NHS Trust,23/09/2015,Vat Suspense Account,Balance Sheet,Hays Specialist Recruitment Ltd,225257,36569.67
DOH,London Ambulance Service NHS Trust,15/09/2015,BP Control Account,Control Accounts,BP Oil,25798,170556.52
DOH,London Ambulance Service NHS Trust,07/09/2015,Ensign Insurance Debtor,Control Accounts,QBE International Insurance T/A Ensign,25672,239265.83
DOH,London Ambulance Service NHS Trust,22/09/2015,Child Care Arrangements,Payroll,Computerserve Vouchers,25843,27475.76
DOH,London Ambulance Service NHS Trust,28/09/2015,BOC Control Account,Control Accounts,British Oxygen,26083,103832.86
DOH,London Ambulance Service NHS Trust,30/09/2015,BP Control Account,Control Accounts,BP Oil,26368,155550.11
DOH,London Ambulance Service NHS Trust,15/09/2015,CNST Contributions,Legal Services,NHSLA,25798,142104.6
DOH,London Ambulance Service NHS Trust,15/09/2015,Liability to 3rd Party Scheme,Legal Services,NHSLA,25798,32521.9
DOH,London Ambulance Service NHS Trust,15/09/2015,Property Expenses Scheme,Legal Services,NHSLA,25798,1527.6
